fUST/lending_fUST_20260628
["ID","MTS","AMOUNT","RATE_DAILY","PERIOD"]
[426556255,1782589865000,-1244.62,0.00050684,120]
[426556256,1782589865000,-3017.06,0.00050684,120]
[426556252,1782589865000,-500.0,0.00050684,120]
[426556251,1782589865000,-500.0,0.00050684,120]
[426556253,1782589865000,-1543.76,0.00050684,120]
[426556248,1782589865000,-1007.52,0.00050684,120]
[426556249,1782589865000,-662.64,0.00050684,120]
[426556250,1782589865000,-1479.45,0.00050684,120]
[426556254,1782589865000,-904.18,0.00050684,120]
[426556263,1782589865000,-500.0,0.00050684,120]
[426556276,1782589866000,-3000.0,0.0005101,85]
[426556275,1782589866000,-151.0,0.00051,120]
[426556279,1782589866000,-3000.0,0.0005103,85]
[426556277,1782589866000,-3000.0,0.0005102,85]
[426556272,1782589866000,-152.0,0.00051,120]
[426556274,1782589866000,-158.0,0.00051,120]
[426556273,1782589866000,-153.0,0.00051,120]
[426556265,1782589866000,-500.0,0.00050684,120]
[426556269,1782589866000,-3000.0,0.00051,85]
[426556270,1782589866000,-156.0,0.00051,120]
[426556268,1782589866000,-151.011188,0.00050959,120]
[426556267,1782589866000,-152.493833,0.00050854,120]
[426556266,1782589866000,-1089.0,0.00050685,120]
[426556264,1782589866000,-827.66,0.00050684,2]
[426556271,1782589866000,-151.0,0.00051,120]
[426556280,1782589866000,-3000.0,0.0005104,85]
[426556283,1782589866000,-3000.0,0.0005106,85]
[426556284,1782589866000,-5630.619585,0.0005107,85]
[426556281,1782589866000,-3000.0,0.0005105,85]
[426556298,1782589866000,-500.0,0.00052054,120]
[426556296,1782589866000,-549.08,0.00052054,120]
[426556297,1782589866000,-500.0,0.00052054,120]
[426556295,1782589866000,-500.0,0.00052054,120]
[426556294,1782589866000,-151.0,0.00052,120]
[426556290,1782589866000,-151.0,0.00052,120]
[426556293,1782589866000,-158.0,0.00052,120]
[426556291,1782589866000,-152.0,0.00052,120]
[426556289,1782589866000,-156.0,0.00052,120]
[426556287,1782589866000,-151.54771,0.00051604,120]
[426556288,1782589866000,-151.003666,0.00051781,120]
[426556286,1782589866000,-151.717722,0.00051417,120]
[426556285,1782589866000,-151.007924,0.00051233,120]
[426556292,1782589866000,-153.0,0.00052,120]
[426556309,1782589867000,-500.0,0.00052054,120]
[426556316,1782589867000,-5151.65,0.00052054,120]
[426556314,1782589867000,-513.6,0.00052054,120]
[426556313,1782589867000,-1114.41,0.00052054,120]
[426556312,1782589867000,-500.0,0.00052054,120]
[426556310,1782589867000,-687.32,0.00052054,120]
[426556308,1782589867000,-500.0,0.00052054,120]
[426556301,1782589867000,-500.0,0.00052054,120]
[426556305,1782589867000,-631.86,0.00052054,120]
[426556303,1782589867000,-500.0,0.00052054,120]
[426556304,1782589867000,-547.44,0.00052054,120]
[426556302,1782589867000,-503.49,0.00052054,120]
[426556300,1782589867000,-1304.42,0.00052054,120]
[426556318,1782589867000,-652.63,0.00052054,120]
[426556299,1782589867000,-500.0,0.00052054,120]
[426556307,1782589867000,-500.0,0.00052054,120]
[426556317,1782589867000,-586.73,0.00052054,120]
[426556322,1782589867000,-500.0,0.00052054,120]
[426556321,1782589867000,-500.0,0.00052054,120]
[426556335,1782589867000,-1231.56,0.00052054,120]
[426556336,1782589867000,-1593.94,0.00052054,120]
[426556334,1782589867000,-500.0,0.00052054,120]
[426556333,1782589867000,-500.0,0.00052054,120]
[426556319,1782589867000,-1653.89,0.00052054,120]
[426556332,1782589867000,-500.0,0.00052054,120]
[426556330,1782589867000,-515.42,0.00052054,14]
[426556331,1782589867000,-555.77,0.00052054,120]
[426556328,1782589867000,-562.21,0.00052054,120]
[426556327,1782589867000,-500.0,0.00052054,120]
[426556324,1782589867000,-1264.2,0.00052054,120]
[426556326,1782589867000,-500.0,0.00052054,120]
[426556325,1782589867000,-1006.92,0.00052054,120]
[426556323,1782589867000,-500.0,0.00052054,120]
[426556320,1782589867000,-796.27,0.00052054,120]
[426556329,1782589867000,-822.49,0.00052054,120]
[426556347,1782589868000,-1328.33,0.00052054,120]
[426556352,1782589868000,-2946.47,0.00052054,90]
[426556350,1782589868000,-1000.0,0.00052054,2]
[426556348,1782589868000,-500.0,0.00052054,120]
[426556349,1782589868000,-2813.05,0.00052054,120]
[426556346,1782589868000,-967.05,0.00052054,120]
[426556345,1782589868000,-4786.87,0.00052054,120]
[426556337,1782589868000,-597.21,0.00052054,120]
[426556343,1782589868000,-500.0,0.00052054,120]
[426556341,1782589868000,-951.99,0.00052054,120]
[426556342,1782589868000,-888.82,0.00052054,120]
[426556338,1782589868000,-556.58,0.00052054,120]
[426556340,1782589868000,-500.0,0.00052054,120]
[426556339,1782589868000,-500.0,0.00052054,120]
[426556344,1782589868000,-3148.51,0.00052054,120]
[426556353,1782589868000,-911.64,0.00052054,120]
[426556351,1782589868000,-1339.26,0.00052054,120]
[426556356,1782589868000,-2479.6,0.00052054,120]
[426556370,1782589868000,-952.22,0.00052054,120]
[426556369,1782589868000,-500.0,0.00052054,120]
[426556368,1782589868000,-917.99,0.00052054,120]
[426556367,1782589868000,-639.43,0.00052054,120]
[426556365,1782589868000,-500.0,0.00052054,120]
[426556366,1782589868000,-500.0,0.00052054,120]
[426556364,1782589868000,-1098.74,0.00052054,120]
[426556354,1782589868000,-1467.57,0.00052054,120]
[426556361,1782589868000,-2301.86,0.00052054,120]
[426556362,1782589868000,-677.92,0.00052054,2]
[426556360,1782589868000,-1321.07,0.00052054,120]
[426556358,1782589868000,-1209.23,0.00052054,120]
[426556359,1782589868000,-6051.31,0.00052054,120]
[426556357,1782589868000,-500.0,0.00052054,120]
[426556355,1782589868000,-500.0,0.00052054,120]
[426556363,1782589868000,-2242.39,0.00052054,120]
[426556384,1782589869000,-1943.03,0.00052054,120]
[426556383,1782589869000,-500.0,0.00052054,120]
[426556381,1782589869000,-1244.62,0.00052054,120]
[426556380,1782589869000,-904.18,0.00052054,120]
[426556379,1782589869000,-1543.76,0.00052054,120]
[426556378,1782589869000,-500.0,0.00052054,120]
[426556374,1782589869000,-1007.52,0.00052054,120]
[426556375,1782589869000,-662.64,0.00052054,120]
[426556376,1782589869000,-1479.45,0.00052054,120]
[426556386,1782589869000,-2276.19,0.00052054,90]
[426556372,1782589869000,-500.0,0.00052054,120]
[426556373,1782589869000,-305.06107125,0.00052054,120]
[426556371,1782589869000,-1215.46,0.00052054,2]
[426556377,1782589869000,-500.0,0.00052054,120]
[426556385,1782589869000,-871.69,0.00052054,120]
[426556382,1782589869000,-3017.06,0.00052054,120]
[426556389,1782589869000,-500.0,0.00052054,120]
[426556387,1782589869000,-694.61,0.00052054,120]
[426556402,1782589869000,-403.0,0.00053,45]
[426556401,1782589869000,-151.046682,0.00052918,120]
[426556400,1782589869000,-151.001908,0.00052838,120]
[426556398,1782589869000,-151.00087,0.00052603,120]
[426556397,1782589869000,-475.78,0.000525,120]
[426556395,1782589869000,-438.224,0.00052194,120]
[426556399,1782589869000,-151.072126,0.0005273,120]
[426556394,1782589869000,-186.0,0.00052194,120]
[426556393,1782589869000,-151.220112,0.00052167,120]
[426556392,1782589869000,-151.002372,0.00052055,120]
[426556391,1782589869000,-500.0,0.00052054,120]
[426556390,1782589869000,-827.66,0.00052054,2]
[426556388,1782589869000,-831.5,0.00052054,120]
[426556396,1782589869000,-151.155893,0.00052355,120]
[426556413,1782589870000,-500.0,0.00053424,120]
[426556417,1782589870000,-500.0,0.00053424,120]
[426556416,1782589870000,-1304.42,0.00053424,120]
[426556415,1782589870000,-500.0,0.00053424,120]
[426556411,1782589870000,-500.0,0.00053424,120]
[426556414,1782589870000,-500.0,0.00053424,120]
[426556412,1782589870000,-549.08,0.00053424,120]
[426556404,1782589870000,-151.0,0.00053,120]
[426556410,1782589870000,-151.017115,0.00053293,120]
[426556409,1782589870000,-151.028986,0.00053106,120]
[426556407,1782589870000,-158.0,0.00053,120]
[426556405,1782589870000,-152.0,0.00053,120]
[426556406,1782589870000,-153.0,0.00053,120]
[426556403,1782589870000,-156.0,0.00053,120]
[426556419,1782589870000,-500.0,0.00053424,120]
[426556408,1782589870000,-151.0,0.00053,120]
[426556420,1782589870000,-547.44,0.00053424,120]
[426556418,1782589870000,-503.49,0.00053424,120]
[426556436,1782589870000,-500.0,0.00053424,120]
[426556421,1782589870000,-631.86,0.00053424,120]
[426556435,1782589870000,-555.45573403,0.00053424,120]
[426556433,1782589870000,-796.27,0.00053424,120]
[426556434,1782589870000,-500.0,0.00053424,120]
[426556431,1782589870000,-652.63,0.00053424,120]
[426556429,1782589870000,-5151.65,0.00053424,120]
[426556430,1782589870000,-586.73,0.00053424,120]
[426556437,1782589870000,-1264.2,0.00053424,120]
[426556425,1782589870000,-687.32,0.00053424,120]
[426556427,1782589870000,-1114.41,0.00053424,120]
[426556426,1782589870000,-500.0,0.00053424,120]
[426556428,1782589870000,-513.6,0.00053424,120]
[426556424,1782589870000,-500.0,0.00053424,120]
[426556422,1782589870000,-500.0,0.00053424,120]
[426556423,1782589870000,-313.51175787,0.00053424,120]
[426556432,1782589870000,-1653.89,0.00053424,120]
[426556452,1782589871000,-500.0,0.00053424,120]
[426556449,1782589871000,-1593.94,0.00053424,120]
[426556450,1782589871000,-597.21,0.00053424,120]
[426556447,1782589871000,-500.0,0.00053424,120]
[426556448,1782589871000,-1231.56,0.00053424,120]
[426556446,1782589871000,-500.0,0.00053424,120]
[426556442,1782589871000,-822.49,0.00053424,120]
[426556444,1782589871000,-555.77,0.00053424,120]
[426556443,1782589871000,-515.42,0.00053424,14]
[426556441,1782589871000,-562.21,0.00053424,120]
[426556439,1782589871000,-500.0,0.00053424,120]
[426556440,1782589871000,-500.0,0.00053424,120]
[426556451,1782589871000,-556.58,0.00053424,120]
[426556445,1782589871000,-500.0,0.00053424,120]
[426556454,1782589871000,-951.99,0.00053424,120]
[426556461,1782589871000,-500.0,0.00053424,120]
[426556455,1782589871000,-888.82,0.00053424,120]
[426556470,1782589871000,-500.0,0.00053424,120]
[426556467,1782589871000,-1467.57,0.00053424,120]
[426556469,1782589871000,-2479.6,0.00053424,120]
[426556468,1782589871000,-500.0,0.00053424,120]
[426556465,1782589871000,-2946.47,0.00053424,90]
[426556466,1782589871000,-911.64,0.00053424,120]
[426556453,1782589871000,-500.0,0.00053424,120]
[426556464,1782589871000,-1339.26,0.00053424,120]
[426556438,1782589871000,-1006.92,0.00053424,120]
[426556460,1782589871000,-1328.33,0.00053424,120]
[426556458,1782589871000,-4786.87,0.00053424,120]
[426556456,1782589871000,-500.0,0.00053424,120]
[426556459,1782589871000,-967.05,0.00053424,120]
[426556457,1782589871000,-3148.51,0.00053424,120]
[426556463,1782589871000,-1000.0,0.00053424,2]
[426556462,1782589871000,-2813.05,0.00053424,120]
[426556474,1782589872000,-2301.86,0.00053424,120]
[426556472,1782589872000,-6051.31,0.00053424,120]
[426556473,1782589872000,-1321.07,0.00053424,120]
[426556471,1782589872000,-1209.23,0.00053424,120]
[426556476,1782589872000,-2242.39,0.00053424,120]
[426556477,1782589872000,-1098.74,0.00053424,120]
[426556478,1782589872000,-500.0,0.00053424,120]
[426556479,1782589872000,-500.0,0.00053424,120]
[426556475,1782589872000,-677.92,0.00053424,2]
[426556518,1782589873000,-250.0,0.00054739,2]
[426556515,1782589873000,-151.00007,0.00054419,120]
[426556516,1782589873000,-151.000009,0.00054607,120]
[426556513,1782589873000,-151.000905,0.00054044,120]
[426556512,1782589873000,-151.0,0.00054,120]
[426556510,1782589873000,-153.0,0.00054,120]
[426556507,1782589873000,-156.0,0.00054,120]
[426556509,1782589873000,-152.0,0.00054,120]
[426556517,1782589873000,-250.0,0.00054739,2]
[426556508,1782589873000,-151.0,0.00054,120]
[426556505,1782589873000,-151.002253,0.00053856,120]
[426556506,1782589873000,-300.0,0.00054,120]
[426556504,1782589873000,-151.004871,0.00053669,120]
[426556511,1782589873000,-158.0,0.00054,120]
[426556519,1782589873000,-250.0,0.00054739,2]
[426556514,1782589873000,-151.000258,0.00054232,120]
[426556520,1782589873000,-250.0,0.00054739,2]
[426556535,1782589873000,-500.0,0.00054794,120]
[426556521,1782589873000,-250.0,0.00054739,2]
[426556532,1782589873000,-295.0,0.00054739,2]
[426556534,1782589873000,-549.08,0.00054794,120]
[426556533,1782589873000,-500.0,0.00054794,120]
[426556531,1782589873000,-250.0,0.00054739,2]
[426556530,1782589873000,-250.0,0.00054739,2]
[426556529,1782589873000,-250.0,0.00054739,2]
[426556527,1782589873000,-250.0,0.00054739,2]
[426556526,1782589873000,-250.0,0.00054739,2]
[426556525,1782589873000,-250.0,0.00054739,2]
[426556523,1782589873000,-250.0,0.00054739,2]
[426556524,1782589873000,-391.0,0.00054739,2]
[426556522,1782589873000,-250.0,0.00054739,2]
[426556528,1782589873000,-250.0,0.00054739,2]
[426556545,1782589874000,-500.0,0.00054794,120]
[426556551,1782589874000,-586.73,0.00054794,120]
[426556549,1782589874000,-513.6,0.00054794,120]
[426556548,1782589874000,-1114.41,0.00054794,120]
[426556547,1782589874000,-500.0,0.00054794,120]
[426556543,1782589874000,-631.86,0.00054794,120]
[426556536,1782589874000,-500.0,0.00054794,120]
[426556542,1782589874000,-547.44,0.00054794,120]
[426556540,1782589874000,-503.49,0.00054794,120]
[426556541,1782589874000,-423.73307742,0.00054794,120]
[426556539,1782589874000,-500.0,0.00054794,120]
[426556537,1782589874000,-500.0,0.00054794,120]
[426556538,1782589874000,-1304.42,0.00054794,120]
[426556550,1782589874000,-5151.65,0.00054794,120]
[426556544,1782589874000,-500.0,0.00054794,120]
[426556552,1782589874000,-1166.66,0.00054794,2]
[426556546,1782589874000,-687.32,0.00054794,120]
[426556554,1782589874000,-1166.66,0.00054794,120]
[426556567,1782589874000,-796.27,0.00054794,120]
[426556569,1782589874000,-500.0,0.00054794,120]
[426556566,1782589874000,-1653.89,0.00054794,120]
[426556568,1782589874000,-500.0,0.00054794,120]
[426556564,1782589874000,-1166.66,0.00054794,120]
[426556565,1782589874000,-652.63,0.00054794,120]
[426556563,1782589874000,-1166.66,0.00054794,120]
[426556555,1782589874000,-1166.66,0.00054794,120]
[426556561,1782589874000,-1166.66,0.00054794,120]
[426556559,1782589874000,-1166.66,0.00054794,120]
[426556562,1782589874000,-1166.66,0.00054794,120]
[426556557,1782589874000,-1166.66,0.00054794,120]
[426556558,1782589874000,-1166.66,0.00054794,120]
[426556556,1782589874000,-1166.66,0.00054794,120]
[426556553,1782589874000,-1166.66,0.00054794,2]
[426556560,1782589874000,-1166.66,0.00054794,120]
[426556585,1782589875000,-500.0,0.00054794,120]
[426556583,1782589875000,-597.21,0.00054794,120]
[426556580,1782589875000,-500.0,0.00054794,120]
[426556581,1782589875000,-1231.56,0.00054794,120]
[426556579,1782589875000,-500.0,0.00054794,120]
[426556582,1782589875000,-1593.94,0.00054794,120]
[426556576,1782589875000,-515.42,0.00054794,14]
[426556574,1782589875000,-562.21,0.00054794,120]
[426556577,1782589875000,-555.77,0.00054794,120]
[426556575,1782589875000,-822.49,0.00054794,120]
[426556573,1782589875000,-500.0,0.00054794,120]
[426556571,1782589875000,-1006.92,0.00054794,120]
[426556572,1782589875000,-500.0,0.00054794,120]
[426556584,1782589875000,-556.58,0.00054794,120]
[426556578,1782589875000,-500.0,0.00054794,120]
[426556570,1782589875000,-1264.2,0.00054794,120]
[426556586,1782589875000,-500.0,0.00054794,120]
[426556588,1782589875000,-888.82,0.00054794,120]
[426556587,1782589875000,-951.99,0.00054794,120]
[426556602,1782589875000,-2479.6,0.00054794,120]
[426556601,1782589875000,-500.0,0.00054794,120]
[426556599,1782589875000,-911.64,0.00054794,120]
[426556600,1782589875000,-1467.57,0.00054794,120]
[426556597,1782589875000,-1339.26,0.00054794,120]
[426556598,1782589875000,-2946.47,0.00054794,90]
[426556596,1782589875000,-1000.0,0.00054794,2]
[426556593,1782589875000,-1328.33,0.00054794,120]
[426556594,1782589875000,-338.71747149,0.00054794,120]
[426556591,1782589875000,-4786.87,0.00054794,120]
[426556592,1782589875000,-967.05,0.00054794,120]
[426556590,1782589875000,-3148.51,0.00054794,120]
[426556589,1782589875000,-500.0,0.00054794,120]
[426556595,1782589875000,-2813.05,0.00054794,120]
[426556612,1782589876000,-500.0,0.00054794,120]
[426556617,1782589876000,-1215.46,0.00054794,2]
[426556615,1782589876000,-500.0,0.00054794,120]
[426556613,1782589876000,-639.43,0.00054794,120]
[426556614,1782589876000,-917.99,0.00054794,120]
[426556610,1782589876000,-1098.74,0.00054794,120]
[426556616,1782589876000,-952.22,0.00054794,120]
[426556609,1782589876000,-2242.39,0.00054794,120]
[426556607,1782589876000,-2301.86,0.00054794,120]
[426556608,1782589876000,-677.92,0.00054794,2]
[426556604,1782589876000,-1209.23,0.00054794,120]
[426556603,1782589876000,-480.02048767,0.00054794,120]
[426556605,1782589876000,-6051.31,0.00054794,120]
[426556611,1782589876000,-500.0,0.00054794,120]
[426556618,1782589876000,-1007.52,0.00054794,120]
[426556606,1782589876000,-1321.07,0.00054794,120]
[426556621,1782589876000,-500.0,0.00054794,120]
[426556634,1782589876000,-3000.0,0.00054794,120]
[426556635,1782589876000,-2004.96750854,0.00054794,120]
[426556632,1782589876000,-3000.0,0.00054794,120]
[426556631,1782589876000,-3000.0,0.00054794,120]
[426556633,1782589876000,-3000.0,0.00054794,120]
[426556630,1782589876000,-1543.76,0.00054794,120]
[426556629,1782589876000,-3000.0,0.00054794,120]
[426556619,1782589876000,-662.64,0.00054794,120]
[426556628,1782589876000,-3000.0,0.00054794,120]
[426556626,1782589876000,-3000.0,0.00054794,120]
[426556623,1782589876000,-3000.0,0.00054794,120]
[426556624,1782589876000,-3000.0,0.00054794,120]
[426556625,1782589876000,-3000.0,0.00054794,120]
[426556622,1782589876000,-500.0,0.00054794,120]
[426556620,1782589876000,-1479.45,0.00054794,120]
[426556627,1782589876000,-3000.0,0.00054794,120]
[426556649,1782589877000,-344.42,0.00054795,120]
[426556647,1782589877000,-344.41,0.00054795,120]
[426556648,1782589877000,-344.42,0.00054795,120]
[426556646,1782589877000,-500.0,0.00054794,120]
[426556645,1782589877000,-827.66,0.00054794,2]
[426556644,1782589877000,-500.0,0.00054794,120]
[426556642,1782589877000,-694.61,0.00054794,120]
[426556639,1782589877000,-1943.03,0.00054794,120]
[426556640,1782589877000,-871.69,0.00054794,120]
[426556641,1782589877000,-2276.19,0.00054794,90]
[426556637,1782589877000,-1244.62,0.00054794,120]
[426556636,1782589877000,-904.18,0.00054794,120]
[426556638,1782589877000,-3017.06,0.00054794,120]
[426556650,1782589877000,-344.42,0.00054795,120]
[426556643,1782589877000,-831.5,0.00054794,120]
[426556651,1782589877000,-344.42,0.00054795,120]
[426556655,1782589877000,-344.42,0.00054795,120]
[426556654,1782589877000,-344.42,0.00054795,120]
[426556667,1782589877000,-200.0,0.00054795,120]
[426556666,1782589877000,-344.42,0.00054795,120]
[426556665,1782589877000,-344.42,0.00054795,120]
[426556664,1782589877000,-344.42,0.00054795,120]
[426556662,1782589877000,-344.42,0.00054795,120]
[426556663,1782589877000,-344.42,0.00054795,120]
[426556661,1782589877000,-344.42,0.00054795,120]
[426556668,1782589877000,-500.0,0.00054795,120]
[426556660,1782589877000,-344.42,0.00054795,120]
[426556656,1782589877000,-344.42,0.00054795,120]
[426556657,1782589877000,-344.42,0.00054795,120]
[426556658,1782589877000,-344.42,0.00054795,120]
[426556653,1782589877000,-344.42,0.00054795,120]
[426556652,1782589877000,-344.42,0.00054795,120]
[426556659,1782589877000,-344.42,0.00054795,120]
[426556681,1782589878000,-500.0,0.00054795,120]
[426556682,1782589878000,-500.0,0.00054795,120]
[426556680,1782589878000,-500.0,0.00054795,120]
[426556676,1782589878000,-500.0,0.00054795,120]
[426556679,1782589878000,-500.0,0.00054795,120]
[426556678,1782589878000,-500.0,0.00054795,120]
[426556672,1782589878000,-500.0,0.00054795,120]
[426556674,1782589878000,-500.0,0.00054795,120]
[426556673,1782589878000,-500.0,0.00054795,120]
[426556671,1782589878000,-500.0,0.00054795,120]
[426556669,1782589878000,-500.0,0.00054795,120]
[426556670,1782589878000,-500.0,0.00054795,120]
[426556685,1782589878000,-500.0,0.00054795,120]
[426556675,1782589878000,-500.0,0.00054795,120]
[426556683,1782589878000,-500.0,0.00054795,120]
[426556691,1782589878000,-1003.6002567,0.00055,120]
[426556687,1782589878000,-500.0,0.00054795,120]
[426556699,1782589878000,-250.0,0.00055123,2]
[426556697,1782589878000,-151.0,0.00055,120]
[426556696,1782589878000,-158.0,0.00055,120]
[426556698,1782589878000,-286.0,0.00055112,2]
[426556694,1782589878000,-152.0,0.00055,120]
[426556693,1782589878000,-151.0,0.00055,120]
[426556701,1782589878000,-250.0,0.00055123,2]
[426556695,1782589878000,-155.25778212,0.00055,120]
[426556692,1782589878000,-156.0,0.00055,120]
[426556686,1782589878000,-500.0,0.00054795,120]
[426556688,1782589878000,-500.0,0.00054795,120]
[426556684,1782589878000,-500.0,0.00054795,120]
[426556689,1782589878000,-1000.0,0.00055,120]
[426556690,1782589878000,-1998.68336954,0.00055,120]
[426556700,1782589878000,-250.0,0.00055123,2]
[426556714,1782589879000,-500.0,0.00056164,120]
[426556705,1782589879000,-250.0,0.00055123,2]
[426556702,1782589879000,-250.0,0.00055123,2]
[426556703,1782589879000,-250.0,0.00055123,2]
[426556706,1782589879000,-364.0,0.00055123,2]
[426556707,1782589879000,-186.0,0.00055194,120]
[426556708,1782589879000,-174.0,0.0005553,2]
[426556709,1782589879000,-156.0,0.00056,120]
[426556712,1782589879000,-158.0,0.00056,120]
[426556710,1782589879000,-151.0,0.00056,120]
[426556711,1782589879000,-152.0,0.00056,120]
[426556713,1782589879000,-151.0,0.00056,120]
[426556704,1782589879000,-250.0,0.00055123,2]
[426556715,1782589879000,-549.08,0.00056164,120]
[426556717,1782589879000,-500.0,0.00056164,120]
[426556716,1782589879000,-416.10178064,0.00056164,120]
[426556728,1782589879000,-1114.41,0.00056164,120]
[426556726,1782589879000,-687.32,0.00056164,120]
[426556723,1782589879000,-631.86,0.00056164,120]
[426556725,1782589879000,-500.0,0.00056164,120]
[426556727,1782589879000,-500.0,0.00056164,120]
[426556722,1782589879000,-547.44,0.00056164,120]
[426556719,1782589879000,-1304.42,0.00056164,120]
[426556721,1782589879000,-503.49,0.00056164,120]
[426556720,1782589879000,-500.0,0.00056164,120]
[426556718,1782589879000,-500.0,0.00056164,120]
[426556724,1782589879000,-278.93564795,0.00056164,120]
[426556738,1782589880000,-1264.2,0.00056164,120]
[426556745,1782589880000,-555.77,0.00056164,120]
[426556740,1782589880000,-491.23699478,0.00056164,120]
[426556741,1782589880000,-500.0,0.00056164,120]
[426556739,1782589880000,-1006.92,0.00056164,120]
[426556737,1782589880000,-500.0,0.00056164,120]
[426556730,1782589880000,-5151.65,0.00056164,120]
[426556734,1782589880000,-1653.89,0.00056164,120]
[426556735,1782589880000,-796.27,0.00056164,120]
[426556733,1782589880000,-652.63,0.00056164,120]
[426556732,1782589880000,-1166.66,0.00056164,120]
[426556731,1782589880000,-586.73,0.00056164,120]
[426556729,1782589880000,-513.6,0.00056164,120]
[426556736,1782589880000,-500.0,0.00056164,120]
[426556743,1782589880000,-822.49,0.00056164,120]
[426556742,1782589880000,-562.21,0.00056164,120]
[426556746,1782589880000,-500.0,0.00056164,120]
[426556761,1782589880000,-967.05,0.00056164,120]
[426556760,1782589880000,-4786.87,0.00056164,120]
[426556762,1782589880000,-1328.33,0.00056164,120]
[426556759,1782589880000,-3148.51,0.00056164,120]
[426556757,1782589880000,-888.82,0.00056164,120]
[426556758,1782589880000,-500.0,0.00056164,120]
[426556755,1782589880000,-581.86020676,0.00056164,120]
[426556744,1782589880000,-515.42,0.00056164,14]
[426556756,1782589880000,-951.99,0.00056164,120]
[426556753,1782589880000,-556.58,0.00056164,120]
[426556752,1782589880000,-597.21,0.00056164,120]
[426556751,1782589880000,-1593.94,0.00056164,120]
[426556749,1782589880000,-1231.56,0.00056164,120]
[426556747,1782589880000,-500.0,0.00056164,120]
[426556748,1782589880000,-500.0,0.00056164,120]
[426556754,1782589880000,-500.0,0.00056164,120]
[426556777,1782589881000,-1098.74,0.00056164,120]
[426556776,1782589881000,-2242.39,0.00056164,120]
[426556774,1782589881000,-2301.86,0.00056164,120]
[426556775,1782589881000,-677.92,0.00056164,2]
[426556773,1782589881000,-1321.07,0.00056164,120]
[426556771,1782589881000,-1209.23,0.00056164,120]
[426556772,1782589881000,-6051.31,0.00056164,120]
[426556767,1782589881000,-911.64,0.00056164,120]
[426556768,1782589881000,-1467.57,0.00056164,120]
[426556769,1782589881000,-500.0,0.00056164,120]
[426556764,1782589881000,-1000.0,0.00056164,2]
[426556766,1782589881000,-2946.47,0.00056164,90]
[426556765,1782589881000,-1339.26,0.00056164,120]
[426556778,1782589881000,-500.0,0.00056164,120]
[426556770,1782589881000,-2479.6,0.00056164,120]
[426556763,1782589881000,-2813.05,0.00056164,120]
[426556779,1782589881000,-500.0,0.00056164,120]
[426556780,1782589881000,-639.43,0.00056164,120]
[426556782,1782589881000,-500.0,0.00056164,120]
[426556795,1782589881000,-871.69,0.00056164,120]
[426556794,1782589881000,-1943.03,0.00056164,120]
[426556793,1782589881000,-3017.06,0.00056164,120]